lending/lending_fUSD_20250917
["ID","MTS","AMOUNT","RATE_DAILY","PERIOD"]
[385945271,1758145831958,-9905.5980765,0.00021138,2]
[385945272,1758145831967,-165.7,0.00021153,2]
[385945273,1758145831976,-10272.10520533,0.00021193,2]
[385945274,1758145831986,-10652.17309792,0.00021248,2]
[385945275,1758145831995,-168.0,0.00021251,2]
[385945276,1758145832005,-150.0,0.00021272,2]
[385945277,1758145832014,-11046.30350255,0.00021303,2]
[385945279,1758145832023,-842.17712832,0.00021358,2]
[385945285,1758145832070,-644.68170827,0.00021358,2]
[385945293,1758145837417,-400.0,0.00021358,2]
[385945294,1758145837590,-399.26499219,0.00021358,2]
[385945295,1758145837661,-9168.89290336,0.00021358,2]
[385945296,1758145837671,-500.0,0.00021411,2]
[385945297,1758145837681,-500.0,0.00021411,2]
[385945298,1758145837691,-500.0,0.00021411,2]
[385945299,1758145837702,-500.0,0.00021411,2]
[385945300,1758145837711,-500.0,0.00021411,2]
[385945301,1758145837721,-500.0,0.00021411,2]
[385945302,1758145837730,-500.0,0.00021411,2]
[385945303,1758145837740,-500.0,0.00021411,2]
[385945304,1758145837750,-500.0,0.00021411,2]
[385945305,1758145837760,-500.0,0.00021411,2]
[385945306,1758145837770,-500.0,0.00021411,2]
[385945307,1758145837780,-500.0,0.00021411,2]
[385945308,1758145837791,-500.0,0.00021411,2]
[385945309,1758145837801,-500.0,0.00021411,2]
[385945310,1758145837812,-500.0,0.00021411,2]
[385945311,1758145837822,-500.0,0.00021411,2]
[385945312,1758145837832,-500.0,0.00021411,2]
[385945313,1758145837841,-500.0,0.00021411,2]
[385945314,1758145837851,-500.0,0.00021411,2]
[385945315,1758145837861,-500.0,0.00021411,2]
[385945316,1758145837871,-500.0,0.00021411,2]
[385945318,1758145837881,-500.0,0.00021411,2]
[385945320,1758145837890,-500.0,0.00021411,2]
[385945322,1758145837899,-500.0,0.00021411,2]
[385945324,1758145837910,-500.0,0.00021411,2]
[385945326,1758145837920,-500.0,0.00021411,2]
[385945328,1758145837931,-500.0,0.00021411,2]
[385945330,1758145837940,-500.0,0.00021411,2]
[385945332,1758145837950,-500.0,0.00021411,2]
[385945334,1758145837959,-500.0,0.00021411,2]
[385945336,1758145837969,-500.0,0.00021411,2]
[385945338,1758145837978,-500.0,0.00021411,2]
[385945340,1758145837988,-500.0,0.00021411,2]
[385945343,1758145837998,-500.0,0.00021411,2]
[385945346,1758145838008,-500.0,0.00021411,2]
[385945349,1758145838018,-500.0,0.00021411,2]
[385945352,1758145838027,-500.0,0.00021411,2]
[385945354,1758145838037,-500.0,0.00021411,2]
[385945356,1758145838047,-500.0,0.00021411,2]
[385945358,1758145838057,-500.0,0.00021411,2]
[385945360,1758145838067,-166.41849251,0.00021411,2]
[385945363,1758145838078,-500.0,0.00021411,2]
[385945365,1758145838088,-500.0,0.00021411,2]
[385945367,1758145838098,-500.0,0.00021411,2]
[385945369,1758145838109,-500.0,0.00021411,2]
[385945371,1758145838119,-500.0,0.00021411,2]
[385945373,1758145838129,-500.0,0.00021411,2]
[385945375,1758145838140,-500.0,0.00021411,2]
[385945377,1758145838151,-500.0,0.00021411,2]
[385945379,1758145838161,-500.0,0.00021411,2]
[385945382,1758145838172,-500.0,0.00021411,2]
[385945384,1758145838182,-11878.85235123,0.00021413,2]
[385945386,1758145838192,-1000.0,0.00021463,2]
[385945388,1758145838203,-12318.36988823,0.00021468,2]
[385945390,1758145838212,-1000.0,0.00021505,2]
[385945392,1758145838223,-2500.0,0.00021505,2]
[385945394,1758145838233,-12774.14957409,0.00021523,2]
[385945396,1758145838243,-191.0,0.00021545,2]
[385945398,1758145838253,-150.0,0.00021549,2]
[385945400,1758145838264,-150.0,0.00021549,2]
[385945402,1758145838274,-150.0,0.00021549,2]
[385945404,1758145838284,-500.0,0.00021549,2]
[385945406,1758145838294,-150.0,0.00021549,2]
[385945409,1758145838304,-500.0,0.00021549,2]
[385945411,1758145838314,-203.52556048,0.00021549,2]
[385945413,1758145838323,-500.0,0.00021549,2]
[385945415,1758145838333,-150.0,0.00021549,2]
[385945417,1758145838343,-150.0,0.00021549,2]
[385945419,1758145838352,-150.0,0.00021549,2]
[385945421,1758145838362,-150.0,0.00021549,2]
[385945423,1758145838372,-13246.79310833,0.00021578,2]
[385945425,1758145838382,-274.0,0.0002158,2]
[385945427,1758145838393,-300.0,0.000216,7]
[385945429,1758145838403,-1744.0,0.000216,2]
[385945431,1758145838412,-150.0,0.00021604,2]
[385945433,1758145838422,-150.0,0.00021604,2]
[385945435,1758145838431,-150.0,0.00021604,2]
[385945437,1758145838441,-500.0,0.00021604,2]
[385945439,1758145838451,-150.0,0.00021604,2]
[385945441,1758145838461,-150.0,0.00021604,2]
[385945444,1758145838471,-500.0,0.00021604,2]
[385945446,1758145838481,-150.0,0.00021604,2]
[385945448,1758145838491,-150.0,0.00021604,2]
[385945450,1758145838501,-500.0,0.00021604,2]
[385945452,1758145838511,-500.0,0.00021604,2]
[385945454,1758145838522,-500.0,0.00021604,2]
[385945456,1758145838532,-150.0,0.00021604,2]
[385945458,1758145838542,-500.0,0.00021604,2]
[385945460,1758145838552,-170.17,0.00021604,2]
[385945462,1758145838562,-181.13,0.00021617,2]
[385945464,1758145838572,-13736.92445334,0.00021633,2]
[385945467,1758145838582,-1769.06892602,0.00021654,2]
[385945469,1758145838592,-151.0,0.00021654,2]
[385945471,1758145838602,-881.871956,0.00021654,2]
[385945473,1758145838614,-881.871956,0.00021654,2]
[385945475,1758145838627,-151.0,0.00021654,2]
[385945477,1758145838637,-151.0,0.00021654,2]
[385945479,1758145838647,-881.871956,0.00021654,2]
[385945481,1758145838657,-151.0,0.00021654,2]
[385945483,1758145838668,-881.871956,0.00021654,2]
[385945486,1758145838678,-151.0,0.00021654,2]
[385945488,1758145838687,-2898.6297,0.00021663,2]
[385945489,1758145838697,-12562.13897262,0.00021663,2]
[385945492,1758145838708,-151.0,0.00021663,2]
[385945494,1758145838718,-151.0,0.00021663,2]
[385945496,1758145838727,-151.0,0.00021663,2]
[385945498,1758145838738,-151.0,0.00021663,2]
[385945500,1758145838748,-13208.46687101,0.00021664,2]
[385945502,1758145838758,-608.14508636,0.00021664,2]
[385945504,1758145838768,-151.0,0.00021664,2]
[385945506,1758145838778,-151.0,0.00021664,2]
[385945508,1758145838788,-151.0,0.00021664,2]
[385945510,1758145838798,-170.473852,0.00021664,2]
[385945512,1758145838808,-154.774715,0.00021664,2]
[385945514,1758145838818,-155.69624,0.00021664,2]
[385945516,1758145838829,-151.0,0.00021664,2]
[385945518,1758145838838,-151.0,0.00021664,2]
[385945520,1758145838848,-151.0,0.00021664,2]
[385945522,1758145838857,-151.0,0.00021664,2]
[385945524,1758145838867,-151.0,0.00021664,2]
[385945527,1758145838877,-151.0,0.00021664,2]
[385945529,1758145838890,-181.13,0.00021668,2]
[385945531,1758145838903,-700.0,0.000217,7]
[385945533,1758145838912,-155.0,0.00021762,2]
[385945535,1758145838922,-262.55440177,0.00021763,2]
[385945537,1758145838931,-500.0,0.00021763,2]
[385945539,1758145838942,-500.0,0.00021763,2]
[385945572,1758145839233,-263.08571968,0.00021763,2]
[385945574,1758145839243,-150.0,0.00021763,2]
[385945576,1758145839252,-500.0,0.00021763,2]
[385945579,1758145839262,-500.0,0.00021763,2]
[385945581,1758145839271,-500.0,0.00021763,2]
[385945583,1758145839282,-1791.0,0.00021763,2]
[385945585,1758145839291,-150.0,0.00021763,2]
[385945587,1758145839301,-500.0,0.00021763,2]
[385945589,1758145839310,-150.0,0.00021763,2]
[385945591,1758145839320,-150.0,0.00021763,2]
[385945593,1758145839329,-150.0,0.00021763,2]
[385945595,1758145839339,-150.0,0.00021763,2]
[385945597,1758145839348,-150.0,0.00021763,2]
[385945599,1758145839357,-150.0,0.00021763,2]
[385945601,1758145839366,-150.0,0.00021763,2]
[385945603,1758145839376,-150.0,0.00021763,2]
[385945605,1758145839385,-996.7508,0.00021763,2]
[385945607,1758145839395,-165411.8993,0.00021764,2]
[385945609,1758145839404,-151.0,0.00021764,2]
[385945611,1758145839414,-151.0,0.00021764,2]
[385945613,1758145839424,-158.641737,0.00021764,2]
[385945615,1758145839433,-151.0,0.00021764,2]
[385945617,1758145839443,-151.0,0.00021764,2]
[385945619,1758145839452,-151.0,0.00021764,2]
[385945621,1758145839461,-151.0,0.00021764,2]
[385945623,1758145839471,-151.0,0.00021764,2]
[385945625,1758145839481,-151.0,0.00021764,2]
[385945628,1758145839491,-151.0,0.00021764,2]
[385945630,1758145839500,-151.0,0.00021764,2]
[385945632,1758145839509,-151.0,0.00021764,2]
[385945634,1758145839519,-152.441778,0.00021764,2]
[385945635,1758145839528,-151.0,0.00021764,2]
[385945636,1758145839538,-159.035602,0.00021764,2]
[385945637,1758145839548,-151.0,0.00021764,2]
[385945638,1758145839558,-151.0,0.00021764,2]
[385945639,1758145839567,-151.0,0.00021764,2]
[385945640,1758145839576,-174.049814,0.00021764,2]
[385945641,1758145839586,-151.0,0.00021764,2]
[385945642,1758145839595,-151.0,0.00021764,2]
[385945643,1758145839604,-151.0,0.00021764,2]
[385945644,1758145839615,-151.0,0.00021764,2]
[385945645,1758145839627,-217.813972,0.00021764,2]
[385945646,1758145839636,-151.0,0.00021764,2]
[385945648,1758145839646,-151.0,0.00021764,2]
[385945650,1758145839655,-151.0,0.00021764,2]
[385945652,1758145839666,-267.127111,0.00021764,2]
[385945654,1758145839675,-179.329868,0.00021764,2]
[385945656,1758145839684,-242.199766,0.00021764,2]
[385945658,1758145839694,-267.127111,0.00021764,2]
[385945660,1758145839706,-478.199201,0.00021764,2]
[385945662,1758145839715,-267.127111,0.00021764,2]
[385945665,1758145839725,-478.199201,0.00021764,2]
[385945667,1758145839735,-267.127111,0.00021764,2]
[385945669,1758145839744,-478.199201,0.00021764,2]
[385945671,1758145839755,-478.199201,0.00021764,2]
[385945673,1758145839764,-151.0,0.00021764,2]
[385945675,1758145839773,-151.0,0.00021764,2]
[385945677,1758145839782,-151.0,0.00021764,2]
[385945679,1758145839792,-151.0,0.00021764,2]
[385945681,1758145839801,-151.0,0.00021764,2]
[385945683,1758145839810,-179.906177,0.00021764,2]
[385945685,1758145839820,-157.347925,0.00021764,2]
[385945687,1758145839830,-151.0,0.00021764,2]
[385945689,1758145839839,-195.151999,0.00021764,2]
[385945691,1758145839848,-151.0,0.00021764,2]
[385945693,1758145839857,-881.871956,0.00021764,2]
[385945695,1758145839867,-881.871956,0.00021764,2]
[385945697,1758145839876,-151.0,0.00021764,2]
[385945699,1758145839885,-881.871956,0.00021764,2]
[385945701,1758145839894,-881.871956,0.00021764,2]
[385945703,1758145839904,-26599.4134,0.00021769,2]
[385945705,1758145839913,-1000.0,0.00021769,2]
[385945707,1758145839922,-500.0,0.00021773,2]
[385945709,1758145839932,-500.0,0.00021773,2]
[385945711,1758145839941,-173.45137277,0.00021773,2]
[385945713,1758145839950,-159.77195382,0.00021773,2]
[385945715,1758145839959,-500.0,0.00021773,2]
[385945717,1758145839968,-500.0,0.00021773,2]
[385945719,1758145839977,-1000.0,0.000218,7]
[385945721,1758145839988,-707.70179784,0.00021817,2]
[385945723,1758145839997,-219.46874462,0.00021817,2]
[385945725,1758145840006,-161.56702766,0.00021817,2]
[385945727,1758145840016,-150.0,0.00021823,2]
[385945729,1758145840026,-150.0,0.00021823,2]
[385945731,1758145840035,-150.0,0.00021823,2]
[385945733,1758145840044,-500.0,0.00021823,2]
[385945735,1758145840054,-150.0,0.00021823,2]
[385945737,1758145840063,-500.0,0.00021823,2]
[385945739,1758145840073,-500.0,0.00021823,2]
[385945741,1758145840082,-150.0,0.00021823,2]
[385945743,1758145840091,-238.39595727,0.00021823,2]
[385945745,1758145840100,-150.0,0.00021823,2]
[385945747,1758145840110,-150.0,0.00021823,2]
[385945749,1758145840120,-219.46874461,0.00021861,2]
[385945752,1758145840129,-13208.46687096,0.00021864,2]
[385945753,1758145840139,-347.5553785,0.00021865,2]
[385945755,1758145840148,-3418.8786847,0.00021865,2]
[385945757,1758145840157,-1363.4265208,0.00021865,2]
[385945760,1758145840167,-6826.3042567,0.00021865,2]
[385945761,1758145840177,-5837.798825,0.00021865,2]
[385945763,1758145840186,-24186.606347,0.00021865,2]
[385945766,1758145840195,-151.0,0.00021865,2]
[385945767,1758145840204,-1871.4021935,0.00021865,2]
[385945769,1758145840213,-151.0,0.00021865,2]
[385945771,1758145840222,-151.0,0.00021865,2]
[385945773,1758145840231,-151.0,0.00021865,2]
[385945775,1758145840241,-151.0,0.00021865,2]
[385945777,1758145840250,-151.0,0.00021865,2]
[385945780,1758145840260,-217.813972,0.00021865,2]
[385945781,1758145840269,-188.103484,0.00021865,2]
[385945783,1758145840278,-151.0,0.00021865,2]
[385945785,1758145840288,-267.127111,0.00021865,2]
[385945787,1758145840297,-267.127111,0.00021865,2]
[385945790,1758145840307,-478.199201,0.00021865,2]
[385945792,1758145840316,-267.127111,0.00021865,2]
[385945794,1758145840325,-478.199201,0.00021865,2]
[385945796,1758145840335,-267.127111,0.00021865,2]
[385945798,1758145840344,-478.199201,0.00021865,2]
[385945800,1758145840354,-478.199201,0.00021865,2]
[385945801,1758145840363,-151.0,0.00021865,2]
[385945803,1758145840373,-151.0,0.00021865,2]
[385945805,1758145840382,-151.0,0.00021865,2]
[385945807,1758145840391,-151.0,0.00021865,2]
[385945809,1758145840401,-151.0,0.00021865,2]
[385945811,1758145840411,-151.0,0.00021865,2]
[385945813,1758145840422,-881.871956,0.00021865,2]
[385945815,1758145840431,-881.871956,0.00021865,2]
[385945817,1758145840441,-881.871956,0.00021865,2]
[385945820,1758145840452,-881.871956,0.00021865,2]
[385945822,1758145840463,-1362.35127607,0.00021866,5]
[385945824,1758145840472,-200.0,0.00021866,2]
[385945825,1758145840482,-220.394491,0.00021867,2]
[385945827,1758145840492,-151.0,0.00021867,2]
[385945829,1758145840501,-151.0,0.00021867,2]
[385945831,1758145840511,-151.0,0.00021867,2]
[385945833,1758145840520,-256.585643,0.00021867,2]
[385945835,1758145840529,-1227.0,0.00021867,2]
[385945837,1758145840538,-1204.0,0.00021867,2]
[385945839,1758145840547,-152.0,0.00021867,2]
[385945841,1758145840556,-1000.0,0.00021867,2]
[385945843,1758145840565,-1000.0,0.00021867,2]
[385945845,1758145840575,-1000.0,0.00021867,2]
[385945847,1758145840584,-1000.0,0.00021867,2]
[385945849,1758145840593,-1000.0,0.00021867,2]
[385945851,1758145840602,-1000.0,0.00021867,2]
[385945853,1758145840611,-1000.0,0.00021867,2]
[385945856,1758145840625,-705.821,0.00021867,2]
[385945858,1758145840636,-1227.0,0.00021867,2]
[385945860,1758145840644,-547.0,0.00021867,2]
[385945862,1758145840654,-151.0,0.00021867,2]
[385945864,1758145840665,-159.13282725,0.00021867,2]
[385945866,1758145840674,-4047.11627092,0.00021867,2]
[385945868,1758145840683,-160.0,0.00021868,3]
[385945870,1758145840694,-362.26,0.0002187,2]
[385945872,1758145840703,-200.0,0.00021878,2]
[385945874,1758145840713,-500.0,0.00021878,2]
[385945876,1758145840723,-150.0,0.00021878,2]
[385945878,1758145840733,-150.0,0.00021878,2]
[385945880,1758145840742,-500.0,0.00021878,2]
[385945882,1758145840751,-150.0,0.00021878,2]
[385945884,1758145840760,-500.0,0.00021878,2]
[385945886,1758145840769,-583.47566478,0.00021878,2]
[385945888,1758145840779,-500.0,0.00021878,2]
[385945890,1758145840788,-151.0,0.00021878,2]
[385945892,1758145840797,-151.0,0.00021878,2]
[385945894,1758145840806,-151.0,0.00021878,2]
[385945896,1758145840815,-151.0,0.00021878,2]
[385945898,1758145840824,-151.0,0.00021878,2]
[385945900,1758145840835,-168.0,0.00021882,2]
[385945902,1758145840845,-12562.13897257,0.00021893,2]
[385945904,1758145840854,-151.0,0.00021898,2]
[385945906,1758145840863,-151.0,0.00021898,2]
[385945908,1758145840873,-151.0,0.00021898,2]
[385945910,1758145840882,-151.0,0.00021898,2]
[385945912,1758145840892,-151.0,0.00021898,2]
[385945914,1758145840901,-151.0,0.00021898,2]
[385945916,1758145840910,-152.435492,0.00021898,2]
[385945918,1758145840920,-151.0,0.00021898,2]
[385945920,1758145840930,-5000.0,0.000219,7]
[385945922,1758145840939,-1400.0,0.000219,7]
[385945924,1758145840948,-168.0,0.00021909,2]
[385945926,1758145840957,-151.0,0.00021909,2]
[385945928,1758145840966,-254.56952169,0.00021917,2]
[385945930,1758145840975,-152.159124,0.00021917,2]
[385945932,1758145840986,-404.59795621,0.00021917,2]
[385945934,1758145840995,-400.0,0.00021917,2]
[385945936,1758145841004,-407.78847937,0.00021917,2]
[385945938,1758145841014,-400.0,0.00021917,2]
[385945941,1758145841024,-400.0,0.00021917,2]
[385945943,1758145841033,-400.0,0.00021917,2]
[385945945,1758145841042,-400.0,0.00021917,2]
[385945947,1758145841052,-400.0,0.00021917,2]
[385945949,1758145841062,-400.0,0.00021917,2]
[385945951,1758145841071,-400.0,0.00021917,2]
[385945953,1758145841080,-400.0,0.00021917,2]
[385945955,1758145841090,-400.0,0.00021917,2]
[385945957,1758145841100,-400.0,0.00021917,2]
[385945959,1758145841109,-400.0,0.00021917,2]
[385945961,1758145841119,-400.0,0.00021917,2]
[385945963,1758145841128,-473.94612195,0.00021917,2]
[385945965,1758145841138,-418.75177677,0.00021917,2]
[385945967,1758145841148,-406.65177552,0.00021917,2]
[385945969,1758145841157,-400.0,0.00021917,2]
[385945971,1758145841167,-400.0,0.00021917,2]
[385945973,1758145841176,-400.0,0.00021917,2]
[385945975,1758145841187,-400.0,0.00021917,2]
[385945977,1758145841196,-400.0,0.00021917,2]
[385945979,1758145841205,-400.0,0.00021917,2]
[385945981,1758145841215,-460.47629284,0.00021917,2]
[385945983,1758145841224,-400.0,0.00021917,2]
[385945985,1758145841233,-400.0,0.00021917,2]
[385945987,1758145841243,-270.598768,0.00021917,2]
[385945989,1758145841252,-368.43218284,0.00021917,2]
[385945991,1758145841261,-400.0,0.00021917,2]
[385945993,1758145841271,-401.85386158,0.00021917,2]
[385945995,1758145841280,-400.0,0.00021917,2]
[385945997,1758145841289,-400.0,0.00021917,2]
[385945999,1758145841297,-400.0,0.00021917,2]
[385946001,1758145841306,-400.0,0.00021917,2]
[385946003,1758145841315,-400.0,0.00021917,2]
[385946005,1758145841325,-400.0,0.00021917,2]
[385946007,1758145841334,-403.70922473,0.00021917,2]
[385946009,1758145841344,-400.0,0.00021917,2]
[385946011,1758145841353,-400.0,0.00021917,2]
[385946013,1758145841362,-400.0,0.00021917,2]
[385946015,1758145841371,-400.0,0.00021917,2]
[385946017,1758145841381,-400.0,0.00021917,2]
[385946019,1758145841389,-400.0,0.00021917,2]
[385946021,1758145841399,-400.0,0.00021917,2]
[385946023,1758145841408,-485.56350358,0.00021917,2]
[385946025,1758145841417,-400.0,0.00021917,2]
[385946027,1758145841427,-400.0,0.00021917,2]
[385946029,1758145841436,-400.0,0.00021917,2]
[385946031,1758145841446,-402.39834083,0.00021917,2]
[385946033,1758145841455,-400.0,0.00021917,2]
[385946035,1758145841464,-400.0,0.00021917,2]
[385946037,1758145841473,-400.0,0.00021917,2]
[385946039,1758145841483,-400.0,0.00021917,2]
[385946041,1758145841492,-400.0,0.00021917,2]
[385946043,1758145841501,-400.0,0.00021917,2]
[385946045,1758145841511,-400.0,0.00021917,2]
[385946047,1758145841520,-400.0,0.00021917,2]
[385946049,1758145841529,-500.0,0.00021917,14]
[385946051,1758145841540,-400.0,0.00021917,2]
[385946053,1758145841549,-400.0,0.00021917,2]
[385946055,1758145841559,-400.0,0.00021917,2]
[385946057,1758145841568,-400.0,0.00021917,2]
[385946059,1758145841578,-303.68116554,0.00021917,2]
[385946061,1758145841588,-400.0,0.00021917,2]
[385946063,1758145841597,-400.0,0.00021917,2]
[385946065,1758145841606,-400.0,0.00021917,2]
[385946067,1758145841618,-410.08549303,0.00021917,2]
[385946069,1758145841627,-400.0,0.00021917,2]
[385946071,1758145841638,-410.54941945,0.00021917,2]
[385946073,1758145841648,-400.0,0.00021917,2]
[385946075,1758145841659,-417.0575319,0.00021917,2]
[385946078,1758145841668,-400.0,0.00021917,2]
[385946080,1758145841678,-400.0,0.00021917,2]
[385946082,1758145841687,-400.0,0.00021917,2]
[385946084,1758145841698,-400.0,0.00021917,2]
[385946086,1758145841707,-400.0,0.00021917,2]
[385946087,1758145841716,-400.0,0.00021917,2]
[385946089,1758145841725,-400.0,0.00021917,2]
[385946091,1758145841735,-509.13916512,0.00021917,2]
[385946093,1758145841744,-400.0,0.00021917,2]
[385946096,1758145841753,-500.0,0.00021917,2]
[385946098,1758145841763,-500.0,0.00021917,2]
[385946099,1758145841772,-500.0,0.00021917,2]
[385946101,1758145841781,-500.0,0.00021917,2]
[385946103,1758145841790,-500.0,0.00021917,2]
[385946105,1758145841799,-500.0,0.00021917,2]
[385946107,1758145841808,-500.0,0.00021917,2]
[385946109,1758145841817,-500.0,0.00021917,2]
[385946111,1758145841827,-500.0,0.00021917,2]
[385946113,1758145841838,-400.0,0.00021917,2]
[385946115,1758145841847,-500.0,0.00021917,2]
[385946117,1758145841855,-246.70782677,0.00021917,2]
[385946119,1758145841864,-400.0,0.00021917,2]
[385946121,1758145841873,-400.0,0.00021917,2]
[385946123,1758145841883,-400.0,0.00021917,2]
[385946125,1758145841891,-400.0,0.00021917,2]
[385946127,1758145841900,-354.1615915,0.00021917,2]
[385946129,1758145841910,-400.0,0.00021917,2]
[385946132,1758145841921,-400.0,0.00021917,2]
[385946134,1758145841934,-400.0,0.00021917,2]
[385946137,1758145841948,-400.0,0.00021917,2]
[385946139,1758145841960,-400.0,0.00021917,2]
[385946141,1758145841971,-400.0,0.00021917,2]
[385946143,1758145841982,-400.0,0.00021917,2]
[385946146,1758145841994,-400.0,0.00021917,2]
[385946148,1758145842006,-400.0,0.00021917,2]
[385946149,1758145842018,-151.0,0.00021917,2]
[385946150,1758145842030,-400.0,0.00021917,2]
[385946151,1758145842043,-400.0,0.00021917,2]
[385946152,1758145842055,-155.420068,0.00021917,2]
[385946153,1758145842067,-400.0,0.00021917,2]
[385946154,1758145842078,-400.0,0.00021917,2]
[385946155,1758145842088,-414.30684113,0.00021917,2]
[385946157,1758145842100,-400.0,0.00021917,2]
[385946159,1758145842112,-400.0,0.00021917,2]
[385946161,1758145842125,-400.0,0.00021917,2]
[385946164,1758145842136,-400.0,0.00021917,2]
[385946166,1758145842148,-400.0,0.00021917,2]
[385946168,1758145842160,-500.0,0.00021917,2]
[385946170,1758145842172,-505.81794161,0.00021917,2]
[385946173,1758145842185,-400.0,0.00021917,2]
[385946175,1758145842197,-400.0,0.00021917,2]
[385946177,1758145842209,-400.0,0.00021917,2]
[385946179,1758145842220,-400.0,0.00021917,2]
[385946182,1758145842235,-400.0,0.00021917,2]
[385946184,1758145842246,-500.0,0.00021917,2]
[385946186,1758145842259,-508.83434971,0.00021917,2]
[385946189,1758145842271,-181.98881905,0.00021917,2]
[385946191,1758145842283,-400.0,0.00021917,2]
[385946193,1758145842294,-400.0,0.00021917,2]
[385946197,1758145842306,-400.0,0.00021917,2]
[385946199,1758145842318,-400.0,0.00021917,2]
[385946201,1758145842332,-400.0,0.00021917,2]
[385946204,1758145842345,-400.0,0.00021917,2]
[385946206,1758145842357,-400.0,0.00021917,2]
[385946209,1758145842368,-400.0,0.00021917,2]
[385946211,1758145842380,-400.0,0.00021917,2]
[385946214,1758145842390,-400.0,0.00021917,2]
[385946216,1758145842400,-400.0,0.00021917,2]
[385946218,1758145842411,-400.0,0.00021917,2]
[385946220,1758145842424,-400.0,0.00021917,2]
[385946223,1758145842437,-413.16573501,0.00021917,2]
[385946225,1758145842449,-400.0,0.00021917,2]
[385946227,1758145842459,-400.0,0.00021917,2]
[385946229,1758145842470,-400.0,0.00021917,2]
[385946231,1758145842481,-400.0,0.00021917,2]
[385946233,1758145842492,-400.0,0.00021917,2]
[385946235,1758145842504,-400.0,0.00021917,2]
[385946238,1758145842517,-400.0,0.00021917,2]
[385946240,1758145842528,-400.0,0.00021917,2]
[385946242,1758145842539,-400.0,0.00021917,2]
[385946244,1758145842549,-408.83286889,0.00021917,2]
[385946247,1758145842560,-400.0,0.00021917,2]
[385946251,1758145842571,-400.0,0.00021917,2]
[385946253,1758145842581,-400.0,0.00021917,2]
[385946255,1758145842592,-400.0,0.00021917,2]
[385946257,1758145842603,-500.0,0.00021917,2]
[385946259,1758145842614,-500.0,0.00021917,2]
[385946261,1758145842628,-400.0,0.00021917,2]
[385946264,1758145842639,-400.0,0.00021917,2]
[385946266,1758145842650,-400.0,0.00021917,2]
[385946268,1758145842663,-400.0,0.00021917,2]
[385946270,1758145842674,-400.0,0.00021917,2]
[385946273,1758145842685,-182.056991,0.00021917,2]
[385946275,1758145842697,-400.0,0.00021917,2]
[385946277,1758145842709,-400.0,0.00021917,2]
[385946279,1758145842720,-400.0,0.00021917,2]
[385946281,1758145842731,-403.91188752,0.00021917,2]
[385946284,1758145842742,-400.0,0.00021917,2]
[385946286,1758145842753,-400.0,0.00021917,2]
[385946288,1758145842764,-401.52,0.00021917,2]
[385946290,1758145842777,-400.0,0.00021917,2]
[385946293,1758145842793,-400.0,0.00021917,2]
[385946295,1758145842805,-541.33348377,0.00021917,2]
[385946297,1758145842815,-400.0,0.00021917,2]
[385946299,1758145842827,-400.0,0.00021917,2]